Cogmind - Beta 12 @@@ ROGUE MODE // 2023.04.19 @ 19:06:21 Player: Mr Goldstein Result: Self-destructed Performance ------------- Evolutions (3) 1500 Regions Visited (6) 1200 Robots Destroyed (1) 5 Value Destroyed (7) 7 Prototype IDs (2) 40 Alien Tech Used (0) 0 Bonus (0) 0 TOTAL SCORE: 2752 Bonus ------- None Cogmind --------- Core Integrity 162/700 Matter 38/300 Energy 100/100 System Corruption 0% Temperature Cool (0) Movement Core (50) Location -7/Factory Parts ------- > --- POWER (2) -------- (None) > --- PROPULSION (5) --- (None) > --- UTILITY (4) ------ System Shield > --- WEAPON (2) ------- (None) > --- INVENTORY (5) ---- Improved Deuterium Engine Improved VTOL Module Improved Datajack Heavy Mace Peak State ------------ > --- POWER ------------ Light Neutrino Core > --- PROPULSION ------- Improved VTOL Module > --- UTILITY ---------- System Shield System Shield System Shield System Shield > --- WEAPON ----------- (None) > --- INVENTORY -------- Improved Datajack Flail Heavy Mace [Rating: 23] Favorites ----------- Power Light Ion Engine Engine Light Ion Engine Power Core Light Neutrino Core Propulsion Improved VTOL Module Flight Unit Improved VTOL Module Utility System Shield Hackware System Shield Weapon Improved Datajack Special Melee Weapon Improved Datajack Build | -11 -10 -9 -8 -7 -7 -7 ------- Run | Jun Mat Mat Mat Fac Was Fac Slots Evolved 6 | . . 2 2 2 . . Power 1 | . . . . 1 . . Propulsion 3 | . . 2 1 . . . Utility 2 | . . . 1 1 . . Weapon . | . . . . . . . Parts Attached 10 | . . 2 3 3 1 1 Power 2 | . . . . 1 1 . Engine 1 | . . . . 1 . . Core 1 | . . . . . 1 . Reactor . | . . . . . . . Propulsion 2 | . . . 1 . . 1 Treads . | . . . . . . . Leg . | . . . . . . . Wheel . | . . . . . . . Hover . | . . . . . . . Flight 2 | . . . 1 . . 1 Utility 5 | . . 2 2 1 . . Device . | . . . . . . . Storage . | . . . . . . . Processor . | . . . . . . . Hackware 5 | . . 2 2 1 . . Protection . | . . . . . . . Artifact . | . . . . . . . Weapon 1 | . . . . 1 . . Energy Gun . | . . . . . . . Energy Cannon . | . . . . . . . Ballistic Gun . | . . . . . . . Ballistic Cannon . | . . . . . . . Launcher . | . . . . . . . Special Weapon . | . . . . . . . Impact Weapon . | . . . . . . . Slashing Weapon . | . . . . . . . Piercing Weapon . | . . . . . . . Special Melee Weapon 1 | . . . . 1 . . Unidentified Prototypes 2 | . . . 1 . 1 . Parts Lost 5 | . . . . 1 . 4 Power 1 | . . . . 1 . . Propulsion 1 | . . . . . . 1 Utility 3 | . . . . . . 3 Weapon . | . . . . . . . Highest Loss Streak 3 | . . . . 1 . 3 To Critical Strikes . | . . . . . . . Average Slot Usage (%) 25 | . . 15 34 44 38 30 Flight 3 | . . . 7 7 7 4 Hackware 20 | . . 15 27 30 30 24 Naked Turns 106 | . 72 34 . . . . Heaviest Build 3 | . . . . 3 . . Greatest Support 5 | 3 3 3 5 5 5 5 Greatest Overweight (x) . | . . . . . . . Average Overweight (x) . | . . . . . . . Largest Inventory Capacity 5 | 5 5 5 5 5 5 5 Average Capacity 5 | 5 5 5 5 5 5 5 Most Carried 5 | 1 1 5 4 3 3 5 Average Carried 3 | . 1 3 4 2 3 4 Final Capacity 5 | 5 5 5 5 5 5 5 Final Carried 5 | 1 1 5 4 3 3 4 Class Distribution -------------------- 75% | Hacker-Mutant 24% | Mutant Dominant Class ---------------- Mutant | -10/Materials Hacker-Mutant | -9/Materials Hacker-Mutant | -8/Materials Hacker-Mutant | -7/Factory Hacker-Mutant | -7/Waste Hacker-Mutant | -7/Factory Resources | -11 -10 -9 -8 -7 -7 -7 ----------- Run | Jun Mat Mat Mat Fac Was Fac Matter Collected . | . . . . . . . Remotely . | . . . . . . . Salvage Created 30 | . 30 . . . . . Parts 4 | . 4 . . . . . Haulers Intercepted . | . . . . . . . Recyclers Shooed . | . . . . . . . Parts Field Recycled . | . . . . . . . Retrieved Matter . | . . . . . . . Parts Self-Destructed . | . . . . . . . Prevented . | . . . . . . . Kills | -11 -10 -9 -8 -7 -7 -7 ------- Run | Jun Mat Mat Mat Fac Was Fac Combat Hostiles Destroyed . | . . . . . . . Classes Destroyed 1 | . 1 . . . . . Tunneler 1 | . 1 . . . . . Best Kill Streak 1 | . 1 . . . . . Combat Bots Only . | . . . . . . . Max Kills in Single Turn 1 | . 1 . . . . . Gunslinging . | . . . . . . . Exploded . | . . . . . . . Melee . | . . . . . . . Uniques/NPCs Destroyed . | . . . . . . . Combat | -11 -10 -9 -8 -7 -7 -7 -------- Run | Jun Mat Mat Mat Fac Was Fac Damage Taken 1226 | . 183 316 57 97 . 573 Core 1086 | . 183 308 57 57 . 481 Absorbed by Shields . | . . . . . . . Core Remaining (%) 59 | 100 26 23 89 . . . Volleys Fired . | . . . . . . . Largest . | . . . . . . . Hottest . | . . . . . . . Shots Fired . | . . . . . . . Gun . | . . . . . . . Cannon . | . . . . . . . Launcher . | . . . . . . . Special . | . . . . . . . Kinetic . | . . . . . . . Thermal . | . . . . . . . Explosive . | . . . . . . . Electromagnetic . | . . . . . . . Robot Hit Streak . | . . . . . . . Robot Miss Streak . | . . . . . . . Penetration Max . | . . . . . . . Secondary Targets . | . . . . . . . Shots Hit Robots 1 | . . . . 1 . . Core Hits 1 | . 1 . . . . . Critical Kills . | . . . . . . . Critical Parts Destroyed . | . . . . . . . Critical Strikes . | . . . . . . . Melee Attacks 1 | . . . . 1 . . Impact . | . . . . . . . Slashing . | . . . . . . . Piercing . | . . . . . . . Sneak Attacks 1 | . . . . 1 . . Combat Hostiles . | . . . . . . . Follow-up Attacks . | . . . . . . . Damage Inflicted 16 | . 12 1 . . . 3 Guns . | . . . . . . . Cannons . | . . . . . . . Explosions . | . . . . . . . Melee . | . . . . . . . Ramming 16 | . 12 1 . . . 3 Kinetic . | . . . . . . . Thermal . | . . . . . . . Explosive . | . . . . . . . Electromagnetic . | . . . . . . . Impact . | . . . . . . . Slashing . | . . . . . . . Piercing . | . . . . . . . Highest Corruption 1 | . . 1 . . . . Average Corruption 1 | . . 1 . . . . Corruption Purged . | . . . . . . . Corruption Blocked . | . . . . . . . Overload Shots . | . . . . . . . Overflow Damage . | . . . . . . . Projectiles . | . . . . . . . Explosions . | . . . . . . . Melee . | . . . . . . . Knockbacks . | . . . . . . . Impact . | . . . . . . . Kinetic . | . . . . . . . Secondary . | . . . . . . . Self-Inflicted Damage 6 | . 5 . . . . 1 Shots . | . . . . . . . Rammed 5 | . 2 1 . . . 2 Targets Rammed 5 | . 2 1 . . . 2 Kicked . | . . . . . . . Crushed . | . . . . . . . Highest Temperature 5 | . . . . . . 5 Average Temperature 5 | . . . . . . 5 Received Heat Transfer 276 | . 99 69 18 6 . 84 Siege Activations . | . . . . . . . Robots Corrupted . | . . . . . . . Combat Hostiles . | . . . . . . . Parts Fried . | . . . . . . . Impact Corruptions . | . . . . . . . Robots Melted . | . . . . . . . Combat Hostiles . | . . . . . . . Parts Melted . | . . . . . . . Heat Transferred . | . . . . . . . Parts Sabotaged . | . . . . . . . Parts Stolen . | . . . . . . . Parts Stripped . | . . . . . . . Power Chain Reactions . | . . . . . . . Missiles Intercepted . | . . . . . . . Alert | -11 -10 -9 -8 -7 -7 -7 ------- Run | Jun Mat Mat Mat Fac Was Fac Peak Influence 223 | . 65 207 186 174 87 223 Initial 87 | . . 27 87 84 57 60 Average 95 | . 27 87 123 139 66 118 Maximum Alert Level 1 | . . 1 . . . 1 Low Security (%) 96 | 100 100 96 100 100 100 90 Level 1 3 | . . 3 . . . 9 Level 2 . | . . . . . . . Level 3 . | . . . . . . . Level 4 . | . . . . . . . Level 5 . | . . . . . . . High Security . | . . . . . . . Max Security . | . . . . . . . Squads Dispatched 9 | . 2 2 . . . 5 Investigation 3 | . 1 . . . . 2 Extermination . | . . . . . . . Reinforcement 5 | . 1 2 . . . 2 Assault 1 | . . . . . . 1 Garrison . | . . . . . . . Intercept . | . . . . . . . Searches Triggered . | . . . . . . . Construction Impeded . | . . . . . . . Haulers Reinforced . | . . . . . . . Active Scanning Responses . | . . . . . . . Cargo Convoy Interrupts . | . . . . . . . Stealth | -11 -10 -9 -8 -7 -7 -7 --------- Run | Jun Mat Mat Mat Fac Was Fac Distress Signals 6 | . 2 2 1 1 . . Communications Jammed . | . . . . . . . Distress Signals . | . . . . . . . Times Spotted 69 | . 12 22 5 7 6 17 Peak Tracking Total 16 | . 10 16 6 5 6 8 Tactical Retreats 6 | . 1 2 . 2 . 1 Traps | -11 -10 -9 -8 -7 -7 -7 ------- Run | Jun Mat Mat Mat Fac Was Fac Traps Triggered 4 | . . . . 2 . 2 Indirectly . | . . . . . . . Trap Hack Attempts 1 | . . . . 1 . . Triggered . | . . . . . . . Disarmed . | . . . . . . . Reprogrammed . | . . . . . . . Reused . | . . . . . . . Traps Extracted . | . . . . . . . Installed . | . . . . . . . Triggered . | . . . . . . . Exploded 1 | . . . . . . 1 Machines | -11 -10 -9 -8 -7 -7 -7 ---------- Run | Jun Mat Mat Mat Fac Was Fac Machines Disabled . | . . . . . . . Max in Single Turn . | . . . . . . . Garrison Access 1 | . . . . . . 1 Machines Repaired . | . . . . . . . Machines Sabotaged . | . . . . . . . Overloaded Fab Kills . | . . . . . . . Hacking | -11 -10 -9 -8 -7 -7 -7 --------- Run | Jun Mat Mat Mat Fac Was Fac Machines Accessed 7 | . 1 . 1 . . 5 Terminals 6 | . 1 . 1 . . 4 Fabricators 1 | . . . . . . 1 Repair Stations . | . . . . . . . Recycling Units . | . . . . . . . Scanalyzers . | . . . . . . . Garrison Access . | . . . . . . . Total Hacks 20 | . 2 . 1 . . 17 Successful 7 | . . . 1 . . 6 Failed 13 | . 2 . . . . 11 Catastrophic 5 | . 2 . . . . 3 Database Lockouts . | . . . . . . . Manual 18 | . 2 . 1 . . 15 Terminals 18 | . 2 . 1 . . 15 Fabricators 2 | . . . . . . 2 Repair Stations . | . . . . . . . Recycling Units . | . . . . . . . Scanalyzers . | . . . . . . . Garrison Access . | . . . . . . . Terminal Hacks 6 | . . . 1 . . 5 Level Access Points 2 | . . . 1 . . 1 Branch Access Points 1 | . . . . . . 1 Zone Layout 3 | . . . . . . 3 Fabricator Hacks . | . . . . . . . Repair Station Hacks . | . . . . . . . Recycling Unit Hacks . | . . . . . . . Scanalyzer . | . . . . . . . Garrison Access Hacks . | . . . . . . . Unauthorized Hacks 1 | . . . . . . 1 Terminals . | . . . . . . . Fabricators 1 | . . . . . . 1 Download 1 | . . . . . . 1 Repair Stations . | . . . . . . . Recycling Units . | . . . . . . . Scanalyzers . | . . . . . . . Garrison Access . | . . . . . . . Data Cores Recovered . | . . . . . . . Used . | . . . . . . . Hacking Detections 3 | . 1 . . . . 2 Full Trace Events 2 | . 1 . . . . 1 Feedback Events . | . . . . . . . Feedback Blocked . | . . . . . . . Robot Schematics Acquired . | . . . . . . . Robots Built . | . . . . . . . Authchips . | . . . . . . . Time . | . . . . . . . Total Robot Build Rating . | . . . . . . . Part Schematics Acquired 1 | . . . . . . 1 Parts Built . | . . . . . . . Authchips . | . . . . . . . Time . | . . . . . . . Total Part Build Rating . | . . . . . . . Parts Repaired . | . . . . . . . Time . | . . . . . . . Parts Recycled . | . . . . . . . Recycled Matter . | . . . . . . . Retrieved Matter . | . . . . . . . Retrieved Components . | . . . . . . . Parts Scanalyzed . | . . . . . . . Part Schematics Acquired . | . . . . . . . Parts Damaged . | . . . . . . . Bothacking | -11 -10 -9 -8 -7 -7 -7 ------------ Run | Jun Mat Mat Mat Fac Was Fac Used RIF Installer . | . . . . . . . Robots Hacked 1 | . . . . 1 . . Non-combat 1 | . . . . 1 . . Combat . | . . . . . . . Robot Hacks Applied 1 | . . . . 1 . . find_chute 1 | . . . . 1 . . Relay Couplers Released 2 | . . . . . . 2 Machine Destruction 2 | . . . . . . 2 Fabnet Peak Effective % . | . . . . . . . Robots Rewired . | . . . . . . . Allies Hacked . | . . . . . . . Hacks Repelled . | . . . . . . . Allies | -11 -10 -9 -8 -7 -7 -7 -------- Run | Jun Mat Mat Mat Fac Was Fac Total Allies . | . . . . . . . Largest Group . | . . . . . . . Highest-Rated Group . | . . . . . . . Highest-Rated Ally . | . . . . . . . Total Orders . | . . . . . . . Ally Attacks . | . . . . . . . Total Damage . | . . . . . . . Kills . | . . . . . . . Allies Corrupted . | . . . . . . . Allies Melted . | . . . . . . . Intel | -11 -10 -9 -8 -7 -7 -7 ------- Run | Jun Mat Mat Mat Fac Was Fac Robot Analysis Total . | . . . . . . . Derelict Logs Recovered . | . . . . . . . Drone Launches . | . . . . . . . Drone Recoveries . | . . . . . . . Exploration | -11 -10 -9 -8 -7 -7 -7 ------------- Run | Jun Mat Mat Mat Fac Was Fac Turns Passed 487 | 11 72 111 53 75 34 131 Spaces Moved 1091 | 21 140 206 129 191 91 313 Core 481 | 21 140 206 24 . . 90 Treads . | . . . . . . . Legs . | . . . . . . . Wheels . | . . . . . . . Hover . | . . . . . . . Flight 610 | . . . 105 191 91 223 Fastest Speed 35 | 50 50 50 35 35 35 35 Average Speed 41 | 50 50 50 37 35 35 39 Slowest Speed 50 | 50 50 50 50 35 35 50 Overloaded Moves . | . . . . . . . Propulsion Burnouts . | . . . . . . . Robots Hopped 8 | . . . 1 2 1 4 Cave-ins Triggered . | . . . . . . . Exploration Rate (%) 30 | 3 45 32 19 9 89 15 Regions Visited 6 Branch Regions . Pre-discovered Areas . | . . . . . . . Known Exits Taken 1 | . . . 1 . . . Unknown Exits Taken 3 | 1 1 1 . . . . Scrap Searched . | . . . . . . . Spaces Dug . | . . . . . . . Terrain Destroyed . | . . . . . . . Melee . | . . . . . . . Projectile . | . . . . . . . AOE . | . . . . . . . Terrain Rammed . | . . . . . . . Walls Destroyed . | . . . . . . . Machines Disabled . | . . . . . . . Actions | -11 -10 -9 -8 -7 -7 -7 --------- Run | Jun Mat Mat Mat Fac Was Fac Total 1108 | 21 141 212 130 197 91 316 Wait 2 | . . . . 1 . 1 Move 1071 | 20 139 205 126 187 88 306 Hop 7 | . . . 1 2 1 3 Pick Up 8 | 1 . 4 . 1 . 2 Fast Attach 5 | . . 2 1 . 1 1 Attach 4 | . . . 1 3 . . Detach 1 | . . . . 1 . . Swap 1 | . . . 1 . . . Drop 2 | . . . . . 1 1 Fire . | . . . . . . . Melee 1 | . . . . 1 . . Ram 5 | . 2 1 . . . 2 Kick . | . . . . . . . Crush . | . . . . . . . Escape Stasis . | . . . . . . . Rewire . | . . . . . . . Trap 1 | . . . . 1 . . Miscellaneous . | . . . . . . . Route ------- -11/Junkyard -10/Materials (discovered 2 exits: [*Mat] / [*Min]) -9/Materials (discovered 3 exits: *Mat / [*Min x2]) -8/Materials (discovered 3 exits: *Fac x3) -7/Factory -7/Waste -7/Factory (discovered 6 exits: Fac x4 / Low x2) History --------- Turn | Location | Event 5 | -11/Junkyard | Discovered new exit (range 16) 12 | -11/Junkyard | Entered Materials 49 | -10/Materials | Discovered new exit (range 13) 59 | -10/Materials | Core integrity fell below 50% 80 | -10/Materials | Discovered new exit (range 10) 84 | -10/Materials | Entered another Materials area 84 | -9/Materials | Evolved 2 slots: Propulsion x2 109 | -9/Materials | Discovered new exit (range 15) 186 | -9/Materials | Discovered new exit (range 6) 187 | -9/Materials | Core integrity fell below 50% 191 | -9/Materials | Discovered new exit (range 9) 195 | -9/Materials | Entered another Materials area 195 | -8/Materials | Evolved 2 slots: Propulsion x1, Utility x1 204 | -8/Materials | Identified exit to Factory 248 | -8/Materials | Entered Factory 248 | -7/Factory | Evolved 2 slots: Power x1, Utility x1 323 | -7/Factory | Sucked down chute 323 | -7/Factory | Entered Waste 331 | -7/Waste | Spotted C-40 Crusher 343 | -7/Waste | Spotted C-40 Crusher 344 | -7/Waste | Spotted C-40 Crusher 344 | -7/Waste | Spotted C-40 Crusher 346 | -7/Waste | Spotted C-40 Crusher 346 | -7/Waste | Discovered new exit (range 16) 347 | -7/Waste | Spotted C-40 Crusher 357 | -7/Waste | Entered Factory 417 | -7/Factory | Identified exit to Factory 428 | -7/Factory | Noticed a derelict Sapper rigging charges 435 | -7/Factory | Build established: Hacker-Mutant 459 | -7/Factory | Core integrity fell below 50% 463 | -7/Factory | Identified exit to Lower Caves 472 | -7/Factory | Lost 3 parts (1n2u) 488 | -7/Factory | Self-destructed Last Messages --------------- 00440_ Imp. VTOL Module destroyed. 00441_ System Shield destroyed. 00448_ O-24 Administrator: "IFF HANDSHAKE FAILED. SECURING TERMINAL." 00458_ ALERT: Hostiles spotted, dispatching reinforcements to Terminal F015. 00463_ Connecting with Terminal... >>Access(Branch) Found 2 branch access points: (83,146) Lower Caves (191,87) Lower Caves Map updated. >>Layout(Zone) Retrieving Zone 4T layout... Downloaded map data. 00463_ Connecting with Terminal... >>Layout(Zone) Retrieving Zone 6N layout... Downloaded map data. 00478_ Slammed into R-06 Scavenger. 00482_ K-01 Serf collects debris. 00487_ System Shield destroyed. Map ----- +----------------------------------------------------+ | | | | | | | | | | | | | | | ?????????????????????????????????????????????????? | | ?????????????????????????????????????????????????? | | ?????????????????????????????????????????????##### | | ????????????????????????????????????????????# | | ???????????????????????????????????????????? ? | | ?????????????????????????#####??????????????# ? | | ?????????????????????????# ??????????????# #? | | ?????????????????????????# #??????????????# #? | | ?????????????????????????+ #??????????????# #? | | ?????????????###+######### #?####+####????# #? | | ????????????? # ### #???## ## | | ?????????????? ##### # | | ????????????? ! # | | ?????????????? Y T # | | ?????????????????""" u r # | | ????????????????"""" !!] #####! # | | ????????????????"""" !]] ## #?#####+### | | ???????????????""""" !]] #####/####?# | | ?????????? @ #?? ???# """""" | | ?????????? # ?# """""" | | ??????????# + ## """""" | | ??????????? s # ## """""" | | ??????????? sss # ## | | ???????????? ############### ## ? | | ???????????? ????????????????# ##??? | | | ??????????????????????????????# #????##### | | ??????????????????????????????# #????????? | | ??????????????????????????????# ?#????????? | | ??????????????????????????????# ???????????? | | ???????????????????????????????? ???????????? | | ?????????????????????????????????????????????????? | | ?????????????????????????????????????????????????? | | ?????????????????????????????????????????????????? | | ?????????????????????????????????????????????????? | | ?????????????????????????????????????????????????? | | ?????????????????????????????????????????????????? | | ?????????????????????????????????????????????????? | | ?????????????????????????????????????????????????? | | ?????????????????????????????????????????????????? | | ?????????????????????????????????????????????????? | | ?????????????????????????????????????????????????? | | ?????????????????????????????????????????????????? | | ?????????????????????????????????????????????????? | +----------------------------------------------------+ Best States ------------- Heat Dissipation 34 Energy Generation 10 Energy Capacity 125 Matter Stores 103 Matter Capacity 300 Sight Range 16 Terrain Scan Density 10 Evasion (%) 63 Defensive Hacking 40 Item Schematics ----------------- Point Defense Array | -7/Factory | Downloaded Robot Schematics ------------------ None Fabricated ------------ Nothing Alien Tech Used ----------------- None Achievements -------------- None Challenges ------------ None Game ------ Seed TrackerDisruptionSegregator Manual? 0 Play Time 00:10:29 Cumulative 128.8 hours Start 2023.04.19 @ 18:58:45 End 2023.04.19 @ 19:06:21 Sessions 1 Manual Loads 0 Difficulty Rogue Special Mode None Game No. 371 Rogue 371 Adventurer 0 Explorer 0 Win Type - Total 4 Types 4/0/0/0/0/0/0/0/0 Lore% 60 Gallery% 63 Achievement% 54 Wizard Run 0 Options --------- ASCII 0 Keyboard 0 Movement Numpad Keybinds 0 Fullscreen 1 Font 12/Smallcaps Map View 83x54 Tactical HUD 1 Map Filters NONE Filters NONE Steam 1 RUN: 23b4aa97-86f9-4ed8-aed9-8ff9edb3d1f3